Cogmind - Beta 16 @@@ ROGUE MODE // 2025.11.02 @ 17:31:19 Player: War__Prophet Result: Self-destructed Performance ------------- Evolutions (1) 500 Regions Visited (2) 400 Robots Destroyed (13) 65 Value Destroyed (297) 297 Prototype IDs (1) 20 Alien Tech Used (0) 0 Bonus (0) 0 TOTAL SCORE: 1282 Bonus ------- None Cogmind --------- Core Integrity 239/400 Matter 67/300 Energy 64/100 System Corruption 1% Temperature Cool (0) Movement Core (50) Location -9/Materials Parts ------- > --- POWER (1) -------- (None) > --- PROPULSION (2) --- (None) > --- UTILITY (4) ------ (None) > --- WEAPON (2) ------- (None) > --- INVENTORY (5) ---- Improved Light Armor Plating Improved Light Armor Plating Improved Light Armor Plating EM Pulse Gun Heavy Particle Gun Peak State ------------ > --- POWER ------------ Light Ion Engine > --- PROPULSION ------- (None) > --- UTILITY ---------- Improved Terrain Scan Processor Improved Terrain Scan Processor Improved Terrain Scan Processor Improved Terrain Scan Processor > --- WEAPON ----------- Heavy Particle Gun Heavy Particle Gun > --- INVENTORY -------- EM Pulse Gun [Rating: 21] Favorites ----------- Power Ion Engine Engine Ion Engine Propulsion Wheel Wheel Wheel Utility Small Storage Unit Device Sensor Array Storage Small Storage Unit Processor Improved Terrain Scan Processor Weapon Assault Rifle Energy Gun Heavy Particle Gun Energy Cannon EM Pulse Cannon Ballistic Gun Assault Rifle Build | -11 -10 -9 ------- Run | Yrd Mat Mat Slots Evolved 2 | . . 2 Power . | . . . Propulsion . | . . . Utility 2 | . . 2 Weapon . | . . . Parts Attached 20 | 6 4 10 Power 2 | 1 . 1 Engine 2 | 1 . 1 Core . | . . . Reactor . | . . . Propulsion 2 | 2 . . Treads . | . . . Leg . | . . . Wheel 2 | 2 . . Hover . | . . . Flight . | . . . Utility 6 | 1 1 4 Device 1 | . 1 . Storage 1 | 1 . . Processor 4 | . . 4 Hackware . | . . . Protection . | . . . Artifact . | . . . Weapon 10 | 2 3 5 Energy Gun 7 | . 3 4 Energy Cannon 1 | . . 1 Ballistic Gun 2 | 2 . . Ballistic Cannon . | . . . Launcher . | . . . Special Weapon . | . . . Impact Weapon . | . . . Slashing Weapon . | . . . Piercing Weapon . | . . . Special Melee Weapon . | . . . Unidentified Prototypes 1 | . . 1 Parts Lost 5 | . 4 1 Power 2 | . 1 1 Propulsion 1 | . 1 . Utility 1 | . 1 . Weapon 1 | . 1 . Highest Loss Streak 4 | . 4 1 To Critical Strikes . | . . . Average Backups 4 | . 5 4 Power . | . 1 . Propulsion . | . . . Utility . | . . 1 Weapon 3 | . 4 2 Tool/Special . | . . . Unused Backups 3 | . . 3 Power . | . . . Propulsion . | . . . Utility 3 | . . 3 Weapon . | . . . Tool/Special . | . . . Average Slot Usage (%) 67 | . 92 21 Engine 10 | . 12 7 Wheel 17 | . 27 . Device 6 | . 10 . Storage 8 | . 13 . Energy Gun 4 | . 1 9 Ballistic Gun 16 | . 26 . Peak Build Rating 21 | 6 7 21 Average Rating 5 | 4 6 5 On Entrance 2 | . 6 . Avg Prop Armor Cover (%) . | . . . Naked Turns 35 | . 16 19 Heaviest Build 15 | 14 15 9 Greatest Support 20 | 20 20 3 Greatest Overweight (x) 2 | . . 2 Average Overweight (x) . | . . . Largest Inventory Capacity 8 | 8 8 5 Average Capacity 6 | 6 7 5 Most Carried 6 | 1 6 5 Average Carried 4 | . 5 4 Final Capacity 8 | 8 5 5 Final Carried 5 | 1 5 5 Class Distribution -------------------- 100% | Mutant Dominant Class ---------------- Mutant | -10/Materials Mutant | -9/Materials Resources | -11 -10 -9 ----------- Run | Yrd Mat Mat Matter Collected 434 | 232 142 60 Remotely . | . . . Salvage Created 395 | . 335 60 Parts 31 | . 27 4 Haulers Intercepted . | . . . Recyclers Shooed 3 | . 3 . Parts Field Recycled . | . . . Retrieved Matter . | . . . Parts Self-Destructed . | . . . Prevented . | . . . Parts Restored . | . . . Kills | -11 -10 -9 ------- Run | Yrd Mat Mat Combat Hostiles Destroyed 10 | . 9 1 Guns 9 | . 9 . Classes Destroyed 5 | . 4 1 Worker 2 | . 2 . Watcher 1 | . 1 . Swarmer 3 | . 3 . Grunt 6 | . 6 . Sentry 1 | . . 1 Best Kill Streak 8 | . 8 1 Combat Bots Only 4 | . 4 1 Max Kills in Single Turn 1 | . 1 1 Gunslinging . | . . . Exploded . | . . . Melee . | . . . Uniques/NPCs Destroyed . | . . . Combat | -11 -10 -9 -------- Run | Yrd Mat Mat Hostile Shots Fired 83 | . 59 24 Missed 18 | . 14 4 Hits 65 | . 45 20 Projectile 65 | . 45 20 Damage Taken 828 | . 533 295 Core 283 | . 122 161 Absorbed by Shields . | . . . Core Remaining (%) 75 | 100 51 . Volleys Fired 56 | . 52 4 Largest 2 | . 2 1 Hottest 80 | . 80 63 Shots Fired 107 | . 103 4 Gun 103 | . 103 . Cannon 4 | . . 4 Launcher . | . . . Special . | . . . Kinetic 98 | . 98 . Thermal . | . . . Explosive . | . . . Electromagnetic 9 | . 5 4 Robot Hit Streak 15 | . 15 4 Robot Miss Streak 6 | . 6 . Penetration Max . | . . . Secondary Targets 1 | . 1 . Max Gunslinging Chain 1 | . 1 . Shots Hit Robots 67 | . 63 4 Core Hits 19 | . 19 . Critical Kills . | . . . Critical Parts Destroyed . | . . . Critical Strikes . | . . . Melee Attacks . | . . . Impact . | . . . Slashing . | . . . Piercing . | . . . Sneak Attacks . | . . . Combat Hostiles . | . . . Follow-up Attacks . | . . . Damage Inflicted 886 | . 787 99 Guns 787 | . 787 . Cannons 86 | . . 86 Explosions . | . . . Melee . | . . . Ramming 13 | . . 13 Kinetic 763 | . 763 . Thermal . | . . . Explosive . | . . . Electromagnetic 110 | . 24 86 Impact . | . . . Slashing . | . . . Piercing . | . . . Highest Corruption 1 | . . 1 Average Corruption 1 | . . 1 Corruption Purged . | . . . Corruption Blocked . | . . . Effects 1 | . . 1 Energy Discharges 1 | . . 1 Overload Shots . | . . . Overflow Damage . | . . . Projectiles . | . . . Explosions . | . . . Melee . | . . . Knockbacks . | . . . Impact . | . . . Kinetic . | . . . Secondary . | . . . Self-Inflicted Damage 6 | . . 6 Shots . | . . . Rammed 4 | . . 4 Targets Rammed 4 | . . 4 Kicked . | . . . Crushed . | . . . Highest Temperature 21 | . 21 21 Average Temperature 7 | . 5 10 Received Heat Transfer 324 | . 234 90 Siege Activations . | . . . Martial Activations . | . . . Shielding Activations . | . . . Robots Disrupted . | . . . Combat Hostiles . | . . . Robots Corrupted 1 | . . 1 Combat Hostiles 1 | . . 1 Parts Fried 2 | . . 2 Impact Corruptions . | . . . Robots Melted . | . . . Combat Hostiles . | . . . Parts Melted . | . . . Heat Transferred . | . . . Parts Sabotaged . | . . . Parts Stolen . | . . . Parts Stripped . | . . . Power Chain Reactions . | . . . Alert | -11 -10 -9 ------- Run | Yrd Mat Mat Maximum Alert Level . | . . . Low Security (%) 100 | 100 100 100 Level 1 . | . . . Level 2 . | . . . Level 3 . | . . . Level 4 . | . . . Level 5 . | . . . High Security . | . . . Max Security . | . . . Peak Influence 123 | . 123 30 Initial 30 | . . 30 Average 32 | . 49 8 Influence Increases 283 | . 253 30 Destroy 0b10 Robot/C 200 | . 180 20 Destroy 0b10 Robot/NC 15 | . 15 . Destroy Leader 52 | . 42 10 Destroy Structure 1 | . 1 . Lose Combat Pursuer 15 | . 15 . Influence Decreases 253 | . 180 73 Entered New Map 43 | . . 43 Time Decay 170 | . 140 30 Lost Part 40 | . 40 . Squads Dispatched 4 | . 3 1 Investigation 1 | . 1 . Extermination . | . . . Reinforcement 3 | . 2 1 Assault . | . . . Garrison . | . . . Intercept . | . . . Searches Triggered . | . . . Construction Impeded . | . . . Haulers Reinforced . | . . . Active Scanning Responses . | . . . Cargo Convoy Interrupts . | . . . Stealth | -11 -10 -9 --------- Run | Yrd Mat Mat Distress Signals 2 | . 1 1 Communications Jammed . | . . . Distress Signals . | . . . Times Spotted 23 | . 20 3 Peak Tracking Total 6 | . 6 3 Tactical Retreats 1 | . 1 . Traps | -11 -10 -9 ------- Run | Yrd Mat Mat Traps Triggered 1 | . 1 . Indirectly . | . . . Trap Hack Attempts . | . . . Triggered . | . . . Disarmed . | . . . Reprogrammed . | . . . Reused . | . . . Traps Extracted . | . . . Installed . | . . . Triggered . | . . . Machines | -11 -10 -9 ---------- Run | Yrd Mat Mat Machines Disabled . | . . . Max in Single Turn . | . . . Machines Repaired . | . . . Machines Dismantled . | . . . Machines Sabotaged . | . . . Overloaded Fab Kills . | . . . Hacking | -11 -10 -9 --------- Run | Yrd Mat Mat Machines Accessed 1 | . . 1 Terminals . | . . . Fabricators . | . . . Repair Stations 1 | . . 1 Recycling Units . | . . . Scanalyzers . | . . . Garrison Access . | . . . Total Hacks 2 | . . 2 Successful . | . . . Failed 2 | . . 2 Catastrophic 1 | . . 1 Database Lockouts . | . . . Manual 2 | . 2 . Terminals . | . . . Fabricators . | . . . Repair Stations 2 | . . 2 Recycling Units . | . . . Scanalyzers . | . . . Garrison Access . | . . . Terminal Hacks . | . . . Fabricator Hacks . | . . . Repair Station Hacks . | . . . Recycling Unit Hacks . | . . . Scanalyzer . | . . . Garrison Access Hacks . | . . . Unauthorized Hacks . | . . . Terminals . | . . . Fabricators . | . . . Repair Stations . | . . . Recycling Units . | . . . Scanalyzers . | . . . Garrison Access . | . . . Data Cores Recovered . | . . . Used . | . . . Hacking Detections 2 | . 1 1 Full Trace Events 1 | . . 1 Feedback Events . | . . . Feedback Blocked . | . . . Robot Schematics Acquired . | . . . Robots Built . | . . . Authchips . | . . . Time . | . . . Total Robot Build Rating . | . . . Part Schematics Acquired . | . . . Parts Built . | . . . Authchips . | . . . Time . | . . . Total Part Build Rating . | . . . Part Studies Acquired . | . . . Parts Repaired . | . . . Time . | . . . Parts Recycled . | . . . Recycled Matter . | . . . Retrieved Matter . | . . . Retrieved Components . | . . . Parts Scanalyzed . | . . . Part Schematics Acquired . | . . . Parts Damaged . | . . . Bothacking | -11 -10 -9 ------------ Run | Yrd Mat Mat Used RIF Installer . | . . . Robots Hacked . | . . . Non-combat . | . . . Combat . | . . . Robot Hacks Applied . | . . . Relay Couplers Released . | . . . Fabnet Peak Effective % . | . . . Robots Rewired . | . . . Allies Hacked . | . . . Hacks Repelled . | . . . Allies | -11 -10 -9 -------- Run | Yrd Mat Mat Total Allies . | . . . Largest Group . | . . . Highest-Rated Group . | . . . Highest-Rated Ally . | . . . Total Orders . | . . . Ally Attacks . | . . . Total Damage . | . . . Kills . | . . . Allies Corrupted . | . . . Allies Melted . | . . . Intel | -11 -10 -9 ------- Run | Yrd Mat Mat Active Infowar (turns) 249 | . 249 . Sensors 249 | . 249 . Robot Analysis Total . | . . . Derelict Logs Recovered . | . . . Drone Launches . | . . . Drone Recoveries . | . . . Exploration | -11 -10 -9 ------------- Run | Yrd Mat Mat Turns Passed 556 | 37 340 179 Spaces Moved 385 | 35 221 129 Core 165 | 3 33 129 Treads . | . . . Legs . | . . . Wheels 220 | 32 188 . Hover . | . . . Flight . | . . . Fastest Speed 50 | 50 50 50 Average Speed 81 | 77 75 94 Slowest Speed 150 | 80 80 150 Overloaded Moves . | . . . Propulsion Burnouts . | . . . Robots Hopped . | . . . Potential Cave-ins . | . . . Cave-ins Triggered . | . . . Exploration Rate (%) 20 | 3 45 12 Regions Visited 2 Branch Regions . Pre-discovered Areas . | . . . Known Exits Taken . | . . . Unknown Exits Taken 2 | 1 1 . Scrap Searched . | . . . Spaces Dug . | . . . Terrain Destroyed . | . . . Melee . | . . . Projectile . | . . . AOE . | . . . Terrain Rammed . | . . . Walls Destroyed . | . . . Machines Disabled . | . . . Actions | -11 -10 -9 --------- Run | Yrd Mat Mat Total 516 | 41 290 185 Wait 28 | . 8 20 Move 383 | 34 220 129 Hop . | . . . Pick Up 9 | 1 5 3 Fast Attach 15 | 6 1 8 Attach 5 | . 2 3 Detach 9 | . 1 8 Swap 1 | . 1 . Drop 6 | . . 6 Fire 56 | . 52 4 Melee . | . . . Ram 4 | . . 4 Kick . | . . . Crush . | . . . Escape Stasis . | . . . Rewire . | . . . Trap . | . . . Miscellaneous . | . . . Route ------- -11/Scrapyard -10/Materials (discovered 2 exits: *Mat / [*Min]) -9/Materials History --------- Turn | Location | Event 16 | -11/Scrapyard | Discovered new exit (range 16) 38 | -11/Scrapyard | Entered Materials 160 | -10/Materials | Discovered new exit (range 6) 313 | -10/Materials | Build established: Mutant 362 | -10/Materials | Released all parts (4) 369 | -10/Materials | Discovered new exit (range 14) 378 | -10/Materials | Entered another Materials area 378 | -9/Materials | Evolved 2 slots: Utility x2 392 | -9/Materials | Lost 4 parts (1p1n1u1w) 557 | -9/Materials | Self-destructed Last Messages --------------- 00511_ Slammed into Y-45 Defender. 00511_ Hvy. Particle Gun broken. 00511_ Destabilizing: Short circuit. 00515_ Hadron Collector comes online. 00517_ ALERT: Hostiles spotted, dispatching reinforcements to Terminal M001. 00518_ Dropped Broken Hvy. Particle Gun. 00519_ Acquired EM Pulse Cannon. 00520_ Lgt. Ion Engine destroyed. 00528_ System corrupted: Energy discharge (-7). 00530_ K-01 Serf collects debris. 00540_ Y-45 Defender misfires. 00549_ Y-45 Defender system terminally corrupted. 00549_ Imp. Ion Engine fried. 00549_ Heat Sink fried. 00549_ K-01 Serf collects debris. 00553_ K-01 Serf cleans the Hadron Collector. 00553_ Acquired 60 matter. 00554_ K-01 Serf collects debris. 00556_ Dropped EM Pulse Cannon. Map ----- +----------------------------------------------------+ | ????????????????????????????????????????????# #? | | ????????????????????????????????????????????# #? | | ????????????????????????????????????????????# #? | | ????????????????????????????????????????????# #? | | ????????????????????????????????????????????# #? | | ????????????????????????????????????????????# #? | | ???????????????????????????????????????????## ## | | ????????????????????????????????????######## # | | ????????????????????????????????????# "" # | | ????????????????????????????????????# T # | | ????????????????????????????????????# # | | ????????????????????????????????????# #### # | | ????????????????????????????????????# #??### ### | | ????????????????????????????????????# #????# #?? | | ????????????????????????????????????# #????# #?? | | ????????????????????????????????????# #?????+#?? | | ????????????????????????????????????# #????????? | | ????????????? ????????????????????# #????????? | | ????????????? ???????????????????# #????????? | | ????????????? ??????????????????# #????????? | | ??????????????# ?????????????????# #????????? | | ??????????????# ???########??????# +????????? | | ??????????????# ??#] ==!!#??????# #????????? | | ??????????????# ?#]]==!!#??????# #????????? | | ??????????????# ## [ #??????# #????????? | | ????????????????# # @ #####??# #####????? | | ????????????????# [ #??# #????? | | ????????????????# k! =##### #??# #????? | | ????????????????# [ #???# #### [#????? | | ????????????????# ##k####### ! [ [#????? | | ????????????????####### # [ #????? | | ??????????????????????# """" T # """" [ !#????? | | ??????????????????????#k"""" + """" [#####????? | | ??????????????????????# """" # """" ##???????? | | ??????????????????????# # "#???????? | | ??????????????????????# """" # ! T#???????? | | ??????????????????????# """" # "#???????? | | ??????????????????????# """" # [ !! ##???????? | | ??????????????????????# + !! #????????? | | ??????????????????????##########+###### #######??? | | ??????????????????????????????? ????# # | | ??????????????????????????????? ????# ##### # | | ?????????????????????????????? = ""???# #????????? | | ?????????????????????????????? ""???# #????????? | | ?????????????????????????????#= """??# #????????? | | ?????????????????????????????# ??# #????????? | | ?????????????????????????????#######??# #????????? | | ?????????????????????????????????######+#????????? | | ?????????????????????????????????# #????????? | | ?????????????????????????????????# """ +????????? | +----------------------------------------------------+ Best States ------------- Heat Dissipation 28 Energy Generation 10 Energy Capacity 250 Matter Stores 272 Matter Capacity 300 Sight Range 16 Robot Scan Range 14 Terrain Scan Density 310 Evasion (%) 50 Item Schematics ----------------- None Robot Schematics ------------------ None Fabricated ------------ Nothing Repaired ---------- Nothing Studied --------- None Alien Tech Used ----------------- None Achievements -------------- None Challenges ------------ None Game ------ Seed DeflectorGlidesysSuite Manual? 0 Play Time 00:05:13 Cumulative 42.1 hours Start 2025.11.01 @ 21:59:44 End 2025.11.02 @ 17:31:19 Sessions 2 Manual Loads 0 Difficulty Rogue Special Mode None Game No. 168 Rogue 168 Adventurer 0 Explorer 0 Win Type - Total 0 Types 0/0/0/0/0/0/0/0/0/0 Lore% 12 Gallery% 33 Achievement% 21 Wizard Run 0 Options --------- Layout 1 ASCII 0 Keyboard 1 Movement Vi Keybinds 0 Fullscreen 1 Font 16/SmallcapsGlow Map View 55x38 Zoom Use 0% Tactical HUD 1 Map Filters NONE Filters NONE Steam 1 RUN: 57b04f95-03c1-496d-a8a6-f7f4cf2fb4fd